[Event "Titled Tuesday Blitz April 26 Late 2022"]
[White "Krstulovic, Alex"]
[Black "Licznerski, Lukasz"]
[WhiteFideId "760056"]
[BlackFideId "1179250"]
[WhiteElo "2193"]
[BlackElo "2422"]
[Result "0-1"]
[Round "11"]
[TimeControl "180+1"]
[Date "2022.04.26"]
[WhiteClock "0:01:12"]
[BlackClock "0:01:00"]

1. e4 {[%clk 0:03:00]}  c6 {[%clk 0:02:48]} 2. d4 {[%clk 0:03:00]}  d5 {[%clk 0:02:49]} 3. exd5 {[%clk 0:03:00]}  cxd5 {[%clk 0:02:50]} 4. Bd3 {[%clk 0:03:00]}  Nc6 {[%clk 0:02:50]} 5. c3 {[%clk 0:03:00]}  Nf6 {[%clk 0:02:50]} 6. Bf4 {[%clk 0:02:59]}  Bg4 {[%clk 0:02:50]} 7. Qb3 {[%clk 0:02:59]}  Qc8 {[%clk 0:02:50]} 8. Nd2 {[%clk 0:02:59]}  e6 {[%clk 0:02:51]} 9. Ngf3 {[%clk 0:02:59]}  Be7 {[%clk 0:02:51]} 10. O-O {[%clk 0:02:59]}  Bh5 {[%clk 0:02:51]} 11. Rae1 {[%clk 0:02:52]}  Bg6 {[%clk 0:02:41]} 12. Re3 {[%clk 0:02:41]}  Ng4 {[%clk 0:02:27]} 13. Bxg6 {[%clk 0:02:40]}  Nxe3 {[%clk 0:02:27]} 14. Bxf7+ {[%clk 0:02:39]}  Kxf7 {[%clk 0:02:27]} 15. fxe3 {[%clk 0:02:39]}  Rf8 {[%clk 0:02:21]} 16. Qc2 {[%clk 0:02:38]}  Kg8 {[%clk 0:02:20]} 17. e4 {[%clk 0:02:36]}  Rxf4 {[%clk 0:02:14]} 18. exd5 {[%clk 0:02:34]}  exd5 {[%clk 0:02:14]} 19. Qb3 {[%clk 0:02:31]}  Qd7 {[%clk 0:02:11]} 20. Re1 {[%clk 0:02:28]}  Raf8 {[%clk 0:02:06]} 21. Nf1 {[%clk 0:02:16]}  Na5 {[%clk 0:01:58]} 22. Qd1 {[%clk 0:02:09]}  Nc6 {[%clk 0:01:46]} 23. Ne3 {[%clk 0:02:07]}  Re4 {[%clk 0:01:26]} 24. Qd3 {[%clk 0:02:00]}  Qe6 {[%clk 0:01:23]} 25. Nd2 {[%clk 0:01:52]}  Ref4 {[%clk 0:01:16]} 26. g3 {[%clk 0:01:30]}  Rf2 {[%clk 0:01:12]} 27. b3 {[%clk 0:01:22]}  Qh3 {[%clk 0:01:10]} 28. Ndf1 {[%clk 0:01:12]}  Bg5 {[%clk 0:01:00]} 0-1


[Site "https://www.chess.com"]

[Event "Titled Tuesday Blitz April 26 Late 2022"]
[White "Lehtosaari, Mauri"]
[Black "Shuvalova, Polina"]
[WhiteFideId "501999"]
[BlackFideId "24171760"]
[WhiteElo "2540"]
[BlackElo "2671"]
[Result "0-1"]
[Round "11"]
[TimeControl "180+1"]
[Date "2022.04.26"]
[WhiteClock "0:00:06"]
[BlackClock "0:00:40"]

1. d4 {[%clk 0:03:00]}  Nf6 {[%clk 0:02:59]} 2. Nf3 {[%clk 0:03:01]}  e6 {[%clk 0:03:00]} 3. Bg5 {[%clk 0:03:01]}  d5 {[%clk 0:02:59]} 4. Nbd2 {[%clk 0:03:01]}  c5 {[%clk 0:02:57]} 5. e3 {[%clk 0:03:01]}  Nc6 {[%clk 0:02:57]} 6. c3 {[%clk 0:03:02]}  Be7 {[%clk 0:02:56]} 7. Bd3 {[%clk 0:03:02]}  h6 {[%clk 0:02:49]} 8. Bh4 {[%clk 0:02:58]}  O-O {[%clk 0:02:48]} 9. O-O {[%clk 0:02:56]}  b6 {[%clk 0:02:44]} 10. Ne5 {[%clk 0:02:55]}  Nxe5 {[%clk 0:02:41]} 11. dxe5 {[%clk 0:02:56]}  Nd7 {[%clk 0:02:41]} 12. Bxe7 {[%clk 0:02:54]}  Qxe7 {[%clk 0:02:41]} 13. f4 {[%clk 0:02:55]}  Bb7 {[%clk 0:02:40]} 14. Qh5 {[%clk 0:02:51]}  Rad8 {[%clk 0:02:33]} 15. Rad1 {[%clk 0:02:43]}  f6 {[%clk 0:02:31]} 16. Qh4 {[%clk 0:02:22]}  Qf7 {[%clk 0:02:26]} 17. exf6 {[%clk 0:02:15]}  Qxf6 {[%clk 0:02:26]} 18. Qg4 {[%clk 0:01:55]}  e5 {[%clk 0:02:19]} 19. Bb5 {[%clk 0:01:49]}  Qe7 {[%clk 0:02:05]} 20. Bxd7 {[%clk 0:01:44]}  Qxd7 {[%clk 0:02:04]} 21. Qxd7 {[%clk 0:01:39]}  Rxd7 {[%clk 0:02:04]} 22. fxe5 {[%clk 0:01:37]}  Re8 {[%clk 0:02:04]} 23. Nf3 {[%clk 0:01:34]}  g5 {[%clk 0:01:44]} 24. h3 {[%clk 0:01:32]}  Kg7 {[%clk 0:01:44]} 25. Rf2 {[%clk 0:01:30]}  Kg6 {[%clk 0:01:41]} 26. g4 {[%clk 0:01:23]}  Rf7 {[%clk 0:01:36]} 27. Ne1 {[%clk 0:00:42]}  Rxe5 {[%clk 0:01:32]} 28. Rxf7 {[%clk 0:00:41]}  Kxf7 {[%clk 0:01:33]} 29. Kf2 {[%clk 0:00:41]}  Re7 {[%clk 0:01:27]} 30. Nd3 {[%clk 0:00:28]}  Kg6 {[%clk 0:01:26]} 31. Re1 {[%clk 0:00:27]}  h5 {[%clk 0:01:25]} 32. Nc1 {[%clk 0:00:20]}  Bc8 {[%clk 0:01:21]} 33. Kg3 {[%clk 0:00:18]}  hxg4 {[%clk 0:01:18]} 34. hxg4 {[%clk 0:00:19]}  Re4 {[%clk 0:01:18]} 35. Nd3 {[%clk 0:00:17]}  Rxg4+ {[%clk 0:01:17]} 36. Kf3 {[%clk 0:00:18]}  Re4 {[%clk 0:01:16]} 37. Nf2 {[%clk 0:00:17]}  Re7 {[%clk 0:01:14]} 38. Rg1 {[%clk 0:00:18]}  Bd7 {[%clk 0:01:10]} 39. Ng4 {[%clk 0:00:15]}  Bxg4+ {[%clk 0:01:09]} 40. Rxg4 {[%clk 0:00:15]}  Kf5 {[%clk 0:01:10]} 41. Rg1 {[%clk 0:00:15]}  Re4 {[%clk 0:01:09]} 42. Rh1 {[%clk 0:00:15]}  Rh4 {[%clk 0:01:08]} 43. Rd1 {[%clk 0:00:13]}  Rh3+ {[%clk 0:01:03]} 44. Kg2 {[%clk 0:00:13]}  Rxe3 {[%clk 0:01:03]} 45. Rxd5+ {[%clk 0:00:12]}  Re5 {[%clk 0:01:01]} 46. Rd7 {[%clk 0:00:12]}  Re2+ {[%clk 0:00:58]} 47. Kf3 {[%clk 0:00:12]}  Rxb2 {[%clk 0:00:59]} 48. Rf7+ {[%clk 0:00:11]}  Ke5 {[%clk 0:00:57]} 49. Rxa7 {[%clk 0:00:12]}  Kd5 {[%clk 0:00:56]} 50. Rg7 {[%clk 0:00:12]}  Kc4 {[%clk 0:00:55]} 51. Rxg5 {[%clk 0:00:11]}  Rxa2 {[%clk 0:00:56]} 52. Rg6 {[%clk 0:00:10]}  Rb2 {[%clk 0:00:56]} 53. Ke3 {[%clk 0:00:10]}  Kxc3 {[%clk 0:00:56]} 54. Rg1 {[%clk 0:00:10]}  c4 {[%clk 0:00:55]} 55. Rc1+ {[%clk 0:00:10]}  Rc2 {[%clk 0:00:55]} 56. Rb1 {[%clk 0:00:09]}  Rb2 {[%clk 0:00:55]} 57. Rc1+ {[%clk 0:00:10]}  Kb3 {[%clk 0:00:56]} 58. Kd4 {[%clk 0:00:10]}  b5 {[%clk 0:00:57]} 59. Kc5 {[%clk 0:00:09]}  c3 {[%clk 0:00:46]} 60. Kd4 {[%clk 0:00:08]}  Rd2+ {[%clk 0:00:44]} 61. Ke3 {[%clk 0:00:09]}  b4 {[%clk 0:00:44]} 62. Rb1+ {[%clk 0:00:09]}  Kc4 {[%clk 0:00:44]} 63. Ra1 {[%clk 0:00:07]}  Rd8 {[%clk 0:00:44]} 64. Ra7 {[%clk 0:00:06]}  Re8+ {[%clk 0:00:41]} 65. Kf2 {[%clk 0:00:07]}  c2 {[%clk 0:00:41]} 66. Kf3 {[%clk 0:00:06]}  Kb3 {[%clk 0:00:40]} 0-1


[Site "https://www.chess.com"]

[Event "Titled Tuesday Blitz April 26 Late 2022"]
[White "Leitao, Rafael"]
[Black "Yuan, Qingyu"]
[WhiteFideId "2101246"]
[BlackFideId "8609772"]
[WhiteElo "2609"]
[BlackElo "2359"]
[Result "1-0"]
[Round "11"]
[TimeControl "180+1"]
[Date "2022.04.26"]
[WhiteClock "0:00:42"]
[BlackClock "0:00:01"]

1. e4 {[%clk 0:03:00]}  c6 {[%clk 0:02:59]} 2. d4 {[%clk 0:02:59]}  d5 {[%clk 0:03:00]} 3. e5 {[%clk 0:02:59]}  c5 {[%clk 0:03:00]} 4. dxc5 {[%clk 0:02:58]}  e6 {[%clk 0:03:01]} 5. a3 {[%clk 0:02:56]}  Bxc5 {[%clk 0:03:00]} 6. Bd3 {[%clk 0:02:54]}  Ne7 {[%clk 0:02:42]} 7. Qg4 {[%clk 0:02:53]}  O-O {[%clk 0:02:41]} 8. Nf3 {[%clk 0:02:50]}  f5 {[%clk 0:02:40]} 9. exf6 {[%clk 0:02:49]}  Rxf6 {[%clk 0:02:40]} 10. Qh5 {[%clk 0:02:38]}  h6 {[%clk 0:02:33]} 11. O-O {[%clk 0:02:26]}  Bd6 {[%clk 0:02:22]} 12. Re1 {[%clk 0:02:20]}  Nbc6 {[%clk 0:02:18]} 13. c4 {[%clk 0:01:57]}  Bd7 {[%clk 0:01:45]} 14. Nc3 {[%clk 0:01:54]}  Qe8 {[%clk 0:01:30]} 15. Qxe8+ {[%clk 0:01:47]}  Rxe8 {[%clk 0:01:29]} 16. Be3 {[%clk 0:01:46]}  a6 {[%clk 0:01:05]} 17. Rad1 {[%clk 0:01:44]}  Bc8 {[%clk 0:00:54]} 18. Bb1 {[%clk 0:01:42]}  Bc7 {[%clk 0:00:37]} 19. cxd5 {[%clk 0:01:38]}  Nxd5 {[%clk 0:00:37]} 20. Nxd5 {[%clk 0:01:37]}  exd5 {[%clk 0:00:38]} 21. Ba2 {[%clk 0:01:32]}  Bg4 {[%clk 0:00:25]} 22. Bxd5+ {[%clk 0:01:29]}  Kh8 {[%clk 0:00:25]} 23. h3 {[%clk 0:01:28]}  Bh5 {[%clk 0:00:25]} 24. Bc5 {[%clk 0:01:14]}  Ne5 {[%clk 0:00:18]} 25. Nxe5 {[%clk 0:01:11]}  Bxe5 {[%clk 0:00:12]} 26. g4 {[%clk 0:01:09]}  Bg6 {[%clk 0:00:12]} 27. Bxb7 {[%clk 0:01:06]}  Bxb2 {[%clk 0:00:09]} 28. Rxe8+ {[%clk 0:01:05]}  Bxe8 {[%clk 0:00:10]} 29. Rd8 {[%clk 0:01:02]}  Re6 {[%clk 0:00:10]} 30. Bxa6 {[%clk 0:01:00]}  Rxa6 {[%clk 0:00:05]} 31. Rxe8+ {[%clk 0:01:00]}  Kh7 {[%clk 0:00:06]} 32. Re3 {[%clk 0:00:59]}  Rc6 {[%clk 0:00:07]} 33. Bb4 {[%clk 0:00:57]}  Rc2 {[%clk 0:00:06]} 34. Kf1 {[%clk 0:00:54]}  Bd4 {[%clk 0:00:06]} 35. Re2 {[%clk 0:00:55]}  Rc1+ {[%clk 0:00:06]} 36. Kg2 {[%clk 0:00:55]}  Ra1 {[%clk 0:00:06]} 37. Rd2 {[%clk 0:00:55]}  Be5 {[%clk 0:00:04]} 38. Re2 {[%clk 0:00:55]}  Bd4 {[%clk 0:00:05]} 39. f4 {[%clk 0:00:54]}  Rb1 {[%clk 0:00:04]} 40. Kf3 {[%clk 0:00:48]}  Rb3+ {[%clk 0:00:04]} 41. Ke4 {[%clk 0:00:48]}  Bb2 {[%clk 0:00:04]} 42. Re3 {[%clk 0:00:46]}  Rxe3+ {[%clk 0:00:02]} 43. Kxe3 {[%clk 0:00:47]}  Kg6 {[%clk 0:00:03]} 44. Ke4 {[%clk 0:00:47]}  h5 {[%clk 0:00:02]} 45. a4 {[%clk 0:00:45]}  hxg4 {[%clk 0:00:02]} 46. hxg4 {[%clk 0:00:46]}  Bf6 {[%clk 0:00:01]} 47. Bc5 {[%clk 0:00:45]}  Bd8 {[%clk 0:00:01]} 48. Bd4 {[%clk 0:00:44]}  Kf7 {[%clk 0:00:01]} 49. Kd5 {[%clk 0:00:42]} 1-0


[Site "https://www.chess.com"]

[Event "Titled Tuesday Blitz April 26 Late 2022"]
[White "Martic, Ivan"]
[Black "Tregubov, Pavel V."]
[WhiteFideId "929301"]
[BlackFideId "4115341"]
[WhiteElo "2559"]
[BlackElo "2599"]
[Result "1-0"]
[Round "11"]
[TimeControl "180+1"]
[Date "2022.04.26"]
[WhiteClock "0:00:26"]
[BlackClock "0:00:10"]

1. d4 {[%clk 0:03:00]}  Nf6 {[%clk 0:02:59]} 2. Bg5 {[%clk 0:02:59]}  e6 {[%clk 0:02:58]} 3. Nd2 {[%clk 0:02:52]}  h6 {[%clk 0:02:58]} 4. Bh4 {[%clk 0:02:52]}  c5 {[%clk 0:02:57]} 5. e3 {[%clk 0:02:50]}  Nc6 {[%clk 0:02:55]} 6. c3 {[%clk 0:02:45]}  d5 {[%clk 0:02:55]} 7. Ngf3 {[%clk 0:02:41]}  Bd6 {[%clk 0:02:43]} 8. Bd3 {[%clk 0:02:32]}  b6 {[%clk 0:02:15]} 9. Bb5 {[%clk 0:02:14]}  Bb7 {[%clk 0:02:11]} 10. Qa4 {[%clk 0:02:09]}  Qc7 {[%clk 0:02:04]} 11. Ne5 {[%clk 0:02:01]}  Bxe5 {[%clk 0:02:03]} 12. dxe5 {[%clk 0:02:00]}  Nd7 {[%clk 0:02:03]} 13. f4 {[%clk 0:01:55]}  c4 {[%clk 0:01:59]} 14. O-O {[%clk 0:01:34]}  Nc5 {[%clk 0:01:54]} 15. Qa3 {[%clk 0:01:33]}  O-O {[%clk 0:01:48]} 16. Nf3 {[%clk 0:01:29]}  Ne4 {[%clk 0:01:11]} 17. Bxc6 {[%clk 0:01:22]}  Bxc6 {[%clk 0:01:10]} 18. Rad1 {[%clk 0:01:12]}  b5 {[%clk 0:01:06]} 19. Nd2 {[%clk 0:01:04]}  Nxd2 {[%clk 0:00:58]} 20. Rxd2 {[%clk 0:01:05]}  Rfe8 {[%clk 0:00:58]} 21. Rd4 {[%clk 0:00:59]}  a5 {[%clk 0:00:58]} 22. Rf3 {[%clk 0:00:54]}  Qb7 {[%clk 0:00:53]} 23. Qd6 {[%clk 0:00:50]}  b4 {[%clk 0:00:40]} 24. cxb4 {[%clk 0:00:40]}  axb4 {[%clk 0:00:40]} 25. Rg3 {[%clk 0:00:40]}  Kh8 {[%clk 0:00:36]} 26. f5 {[%clk 0:00:33]}  Rxa2 {[%clk 0:00:34]} 27. h3 {[%clk 0:00:32]}  Rxb2 {[%clk 0:00:24]} 28. Bf6 {[%clk 0:00:31]}  Rg8 {[%clk 0:00:15]} 29. Rdg4 {[%clk 0:00:29]}  d4 {[%clk 0:00:13]} 30. Rxg7 {[%clk 0:00:28]}  Rxg7 {[%clk 0:00:10]} 31. Qf8+ {[%clk 0:00:26]} 1-0


[Site "https://www.chess.com"]

[Event "Titled Tuesday Blitz April 26 Late 2022"]
[White "Martin Barcelo, Carles"]
[Black "Sailer, Mike"]
[WhiteFideId "24561444"]
[BlackFideId "2012901"]
[WhiteElo "1875"]
[BlackElo "2109"]
[Result "1-0"]
[Round "11"]
[TimeControl "180+1"]
[Date "2022.04.26"]
[WhiteClock "0:00:04"]
[BlackClock "0:00:02"]

1. e4 {[%clk 0:03:00]}  d5 {[%clk 0:02:58]} 2. exd5 {[%clk 0:03:00]}  Qxd5 {[%clk 0:02:57]} 3. Nc3 {[%clk 0:03:00]}  Qd6 {[%clk 0:02:54]} 4. d4 {[%clk 0:02:58]}  Nf6 {[%clk 0:02:48]} 5. Nf3 {[%clk 0:02:58]}  c6 {[%clk 0:02:47]} 6. Ne5 {[%clk 0:02:51]}  Nbd7 {[%clk 0:02:44]} 7. Nc4 {[%clk 0:02:51]}  Qc7 {[%clk 0:02:43]} 8. a4 {[%clk 0:02:52]}  Nb6 {[%clk 0:02:30]} 9. Ne5 {[%clk 0:02:51]}  Nbd5 {[%clk 0:02:28]} 10. Nxd5 {[%clk 0:02:37]}  Nxd5 {[%clk 0:02:23]} 11. g3 {[%clk 0:02:37]}  Bf5 {[%clk 0:02:10]} 12. c3 {[%clk 0:02:24]}  e6 {[%clk 0:02:01]} 13. Bg2 {[%clk 0:02:22]}  Bd6 {[%clk 0:01:59]} 14. Qe2 {[%clk 0:02:22]}  O-O {[%clk 0:01:54]} 15. a5 {[%clk 0:02:18]}  a6 {[%clk 0:01:52]} 16. O-O {[%clk 0:02:17]}  c5 {[%clk 0:01:46]} 17. Nf3 {[%clk 0:02:12]}  h6 {[%clk 0:01:40]} 18. Rd1 {[%clk 0:02:07]}  Rad8 {[%clk 0:01:19]} 19. dxc5 {[%clk 0:01:41]}  Bxc5 {[%clk 0:01:15]} 20. Ne5 {[%clk 0:01:41]}  Ne7 {[%clk 0:01:00]} 21. Bf4 {[%clk 0:01:29]}  Qc8 {[%clk 0:00:49]} 22. Nc4 {[%clk 0:00:55]}  Rxd1+ {[%clk 0:00:44]} 23. Rxd1 {[%clk 0:00:54]}  Nc6 {[%clk 0:00:41]} 24. Bd6 {[%clk 0:00:44]}  Bxd6 {[%clk 0:00:36]} 25. Nxd6 {[%clk 0:00:45]}  Qc7 {[%clk 0:00:31]} 26. Nxf5 {[%clk 0:00:34]}  exf5 {[%clk 0:00:31]} 27. b4 {[%clk 0:00:34]}  g6 {[%clk 0:00:29]} 28. Qe3 {[%clk 0:00:32]}  h5 {[%clk 0:00:24]} 29. Qc5 {[%clk 0:00:25]}  Rc8 {[%clk 0:00:18]} 30. Rd3 {[%clk 0:00:17]}  Qe5 {[%clk 0:00:09]} 31. Qxe5 {[%clk 0:00:10]}  Nxe5 {[%clk 0:00:09]} 32. Re3 {[%clk 0:00:10]}  Nc4 {[%clk 0:00:06]} 33. Re7 {[%clk 0:00:10]}  Nd6 {[%clk 0:00:05]} 34. Bxb7 {[%clk 0:00:10]}  Nxb7 {[%clk 0:00:05]} 35. Rxb7 {[%clk 0:00:10]}  Rxc3 {[%clk 0:00:05]} 36. Rb6 {[%clk 0:00:11]}  Rb3 {[%clk 0:00:02]} 37. f4 {[%clk 0:00:09]}  Kf8 {[%clk 0:00:02]} 38. Kf1 {[%clk 0:00:09]}  Ke7 {[%clk 0:00:03]} 39. Ke2 {[%clk 0:00:09]}  Rb2+ {[%clk 0:00:03]} 40. Ke3 {[%clk 0:00:09]}  Rxh2 {[%clk 0:00:03]} 41. Rxa6 {[%clk 0:00:09]}  Rg2 {[%clk 0:00:03]} 42. Kf3 {[%clk 0:00:09]}  Rb2 {[%clk 0:00:04]} 43. Rb6 {[%clk 0:00:10]}  f6 {[%clk 0:00:03]} 44. a6 {[%clk 0:00:10]}  g5 {[%clk 0:00:03]} 45. fxg5 {[%clk 0:00:05]}  fxg5 {[%clk 0:00:04]} 46. a7 {[%clk 0:00:04]}  Rb3+ {[%clk 0:00:04]} 47. Kf2 {[%clk 0:00:03]}  Ra3 {[%clk 0:00:04]} 48. Rb7+ {[%clk 0:00:04]}  Ke6 {[%clk 0:00:04]} 49. b5 {[%clk 0:00:04]}  Ra2+ {[%clk 0:00:02]} 50. Kf3 {[%clk 0:00:04]}  Ra3+ {[%clk 0:00:02]} 51. Kg2 {[%clk 0:00:05]}  Ra2+ {[%clk 0:00:02]} 52. Kh3 {[%clk 0:00:05]}  Kf6 {[%clk 0:00:02]} 53. Rb6+ {[%clk 0:00:04]}  Ke5 {[%clk 0:00:02]} 54. Ra6 {[%clk 0:00:04]}  g4+ {[%clk 0:00:02]} 55. Kh4 {[%clk 0:00:04]}  Rh2+ {[%clk 0:00:02]} 56. Kg5 {[%clk 0:00:04]} 1-0


[Site "https://www.chess.com"]

[Event "Titled Tuesday Blitz April 26 Late 2022"]
[White "Mikhalsky, Vladimir"]
[Black "Bachmann, Axel"]
[WhiteFideId "14144352"]
[BlackFideId "3700488"]
[WhiteElo "2301"]
[BlackElo "2587"]
[Result "1/2-1/2"]
[Round "11"]
[TimeControl "180+1"]
[Date "2022.04.26"]
[WhiteClock "0:00:08"]
[BlackClock "0:00:10"]

1. e4 {[%clk 0:02:57]}  c5 {[%clk 0:02:59]} 2. Nf3 {[%clk 0:02:56]}  d6 {[%clk 0:03:00]} 3. Bb5+ {[%clk 0:02:54]}  Nd7 {[%clk 0:03:00]} 4. O-O {[%clk 0:02:51]}  a6 {[%clk 0:02:58]} 5. Be2 {[%clk 0:02:47]}  Ngf6 {[%clk 0:02:57]} 6. Nc3 {[%clk 0:02:47]}  g6 {[%clk 0:02:47]} 7. d4 {[%clk 0:02:46]}  cxd4 {[%clk 0:02:43]} 8. Nxd4 {[%clk 0:02:46]}  Bg7 {[%clk 0:02:44]} 9. f3 {[%clk 0:02:35]}  b5 {[%clk 0:02:43]} 10. Be3 {[%clk 0:02:34]}  Bb7 {[%clk 0:02:44]} 11. a3 {[%clk 0:02:32]}  O-O {[%clk 0:02:43]} 12. Qd2 {[%clk 0:02:32]}  Rc8 {[%clk 0:02:41]} 13. Bh6 {[%clk 0:02:32]}  Qb6 {[%clk 0:02:25]} 14. Bxg7 {[%clk 0:02:31]}  Kxg7 {[%clk 0:02:26]} 15. Kh1 {[%clk 0:02:30]}  h6 {[%clk 0:01:57]} 16. Nd1 {[%clk 0:02:29]}  Rc7 {[%clk 0:01:50]} 17. Ne3 {[%clk 0:02:28]}  e6 {[%clk 0:01:42]} 18. c3 {[%clk 0:02:19]}  Kh7 {[%clk 0:01:27]} 19. Bd3 {[%clk 0:01:57]}  Ne5 {[%clk 0:01:12]} 20. Bc2 {[%clk 0:01:48]}  Nc4 {[%clk 0:01:08]} 21. Nxc4 {[%clk 0:01:41]}  bxc4 {[%clk 0:01:08]} 22. Rab1 {[%clk 0:01:39]}  Qc5 {[%clk 0:01:03]} 23. Rfd1 {[%clk 0:01:37]}  Rd8 {[%clk 0:00:53]} 24. Ne2 {[%clk 0:01:36]}  Bc6 {[%clk 0:00:40]} 25. Qf4 {[%clk 0:01:35]}  Qg5 {[%clk 0:00:34]} 26. Qxg5 {[%clk 0:01:24]}  hxg5 {[%clk 0:00:35]} 27. Rd4 {[%clk 0:01:21]}  d5 {[%clk 0:00:15]} 28. Rbd1 {[%clk 0:01:17]}  Rdc8 {[%clk 0:00:13]} 29. Ng3 {[%clk 0:01:08]}  e5 {[%clk 0:00:10]} 30. R4d2 {[%clk 0:01:07]}  dxe4 {[%clk 0:00:10]} 31. Nxe4 {[%clk 0:01:05]}  Bxe4 {[%clk 0:00:07]} 32. Bxe4 {[%clk 0:01:05]}  Nxe4 {[%clk 0:00:07]} 33. fxe4 {[%clk 0:01:05]}  Rb8 {[%clk 0:00:07]} 34. h3 {[%clk 0:00:58]}  Rcb7 {[%clk 0:00:07]} 35. Rd7 {[%clk 0:00:54]}  Kg7 {[%clk 0:00:06]} 36. Rxb7 {[%clk 0:00:52]}  Rxb7 {[%clk 0:00:07]} 37. Rd2 {[%clk 0:00:48]}  a5 {[%clk 0:00:07]} 38. Kg1 {[%clk 0:00:47]}  f5 {[%clk 0:00:06]} 39. Kf2 {[%clk 0:00:46]}  Rb5 {[%clk 0:00:03]} 40. Ke3 {[%clk 0:00:43]}  Kf6 {[%clk 0:00:03]} 41. a4 {[%clk 0:00:39]}  Rb6 {[%clk 0:00:02]} 42. g3 {[%clk 0:00:37]}  Ra6 {[%clk 0:00:02]} 43. Rd5 {[%clk 0:00:36]}  Ke6 {[%clk 0:00:02]} 44. Rb5 {[%clk 0:00:35]}  Rd6 {[%clk 0:00:02]} 45. Rxa5 {[%clk 0:00:34]}  Rd3+ {[%clk 0:00:02]} 46. Kf2 {[%clk 0:00:31]}  Rd2+ {[%clk 0:00:03]} 47. Ke3 {[%clk 0:00:30]}  Rd3+ {[%clk 0:00:04]} 48. Kf2 {[%clk 0:00:31]}  Rd2+ {[%clk 0:00:04]} 49. Kf1 {[%clk 0:00:29]}  Rxb2 {[%clk 0:00:05]} 50. Ra6+ {[%clk 0:00:29]}  Kf7 {[%clk 0:00:05]} 51. Rc6 {[%clk 0:00:28]}  Rb3 {[%clk 0:00:05]} 52. Rxc4 {[%clk 0:00:27]}  Ra3 {[%clk 0:00:05]} 53. Ke2 {[%clk 0:00:26]}  Ke6 {[%clk 0:00:06]} 54. Kd3 {[%clk 0:00:26]}  Ra2 {[%clk 0:00:06]} 55. Rc6+ {[%clk 0:00:25]}  Kf7 {[%clk 0:00:06]} 56. Ra6 {[%clk 0:00:22]}  Rg2 {[%clk 0:00:06]} 57. Kc4 {[%clk 0:00:22]}  Rxg3 {[%clk 0:00:06]} 58. a5 {[%clk 0:00:20]}  Re3 {[%clk 0:00:06]} 59. exf5 {[%clk 0:00:19]}  gxf5 {[%clk 0:00:07]} 60. Kd5 {[%clk 0:00:19]}  f4 {[%clk 0:00:07]} 61. Ra7+ {[%clk 0:00:19]}  Kf6 {[%clk 0:00:07]} 62. a6 {[%clk 0:00:19]}  Rxc3 {[%clk 0:00:07]} 63. Ra8 {[%clk 0:00:19]}  Ra3 {[%clk 0:00:07]} 64. Ke4 {[%clk 0:00:18]}  Ra4+ {[%clk 0:00:07]} 65. Kf3 {[%clk 0:00:17]}  Ra3+ {[%clk 0:00:06]} 66. Kg4 {[%clk 0:00:17]}  Rg3+ {[%clk 0:00:07]} 67. Kh5 {[%clk 0:00:17]}  Rxh3+ {[%clk 0:00:08]} 68. Kg4 {[%clk 0:00:17]}  Rg3+ {[%clk 0:00:08]} 69. Kh5 {[%clk 0:00:17]}  Kf5 {[%clk 0:00:07]} 70. Rf8+ {[%clk 0:00:16]}  Ke4 {[%clk 0:00:08]} 71. a7 {[%clk 0:00:16]}  Ra3 {[%clk 0:00:08]} 72. a8=Q+ {[%clk 0:00:14]}  Rxa8 {[%clk 0:00:08]} 73. Rxa8 {[%clk 0:00:14]}  f3 {[%clk 0:00:07]} 74. Kxg5 {[%clk 0:00:13]}  f2 {[%clk 0:00:06]} 75. Rf8 {[%clk 0:00:12]}  Ke3 {[%clk 0:00:07]} 76. Kg4 {[%clk 0:00:10]}  Ke2 {[%clk 0:00:07]} 77. Kg3 {[%clk 0:00:09]}  f1=Q {[%clk 0:00:07]} 78. Rxf1 {[%clk 0:00:08]}  Kxf1 {[%clk 0:00:08]} 79. Kf3 {[%clk 0:00:09]}  Ke1 {[%clk 0:00:09]} 80. Ke4 {[%clk 0:00:09]}  Ke2 {[%clk 0:00:10]} 81. Kxe5 {[%clk 0:00:08]} 1/2-1/2


[Site "https://www.chess.com"]

[Event "Titled Tuesday Blitz April 26 Late 2022"]
[White "Moral Garcia, Serafin"]
[Black "Stanisz, Patryk"]
[WhiteFideId "2201925"]
[BlackFideId "1123106"]
[WhiteElo "2228"]
[BlackElo "1833"]
[Result "1-0"]
[Round "11"]
[TimeControl "180+1"]
[Date "2022.04.26"]
[WhiteClock "0:01:33"]
[BlackClock "0:00:01"]

1. e4 {[%clk 0:03:00]}  c5 {[%clk 0:02:58]} 2. Nf3 {[%clk 0:03:00]}  Nc6 {[%clk 0:02:58]} 3. Bb5 {[%clk 0:02:59]}  g6 {[%clk 0:02:58]} 4. O-O {[%clk 0:02:59]}  Bg7 {[%clk 0:02:58]} 5. Re1 {[%clk 0:03:00]}  Nf6 {[%clk 0:02:58]} 6. e5 {[%clk 0:03:00]}  Nd5 {[%clk 0:02:56]} 7. Nc3 {[%clk 0:03:00]}  Nxc3 {[%clk 0:02:54]} 8. dxc3 {[%clk 0:03:00]}  O-O {[%clk 0:02:52]} 9. Bg5 {[%clk 0:03:00]}  Qc7 {[%clk 0:02:44]} 10. Qd5 {[%clk 0:02:59]}  b6 {[%clk 0:02:09]} 11. Rad1 {[%clk 0:02:57]}  Rb8 {[%clk 0:01:58]} 12. Qe4 {[%clk 0:02:34]}  Bb7 {[%clk 0:01:55]} 13. Qh4 {[%clk 0:02:34]}  Rfe8 {[%clk 0:01:43]} 14. Bh6 {[%clk 0:02:32]}  a6 {[%clk 0:01:33]} 15. Ng5 {[%clk 0:02:23]}  Bxe5 {[%clk 0:01:13]} 16. Bxc6 {[%clk 0:02:18]}  Bxc6 {[%clk 0:01:10]} 17. Nxh7 {[%clk 0:02:08]}  Bxh2+ {[%clk 0:00:53]} 18. Kh1 {[%clk 0:02:07]}  Be5 {[%clk 0:00:28]} 19. Bg5 {[%clk 0:01:37]}  Bg7 {[%clk 0:00:09]} 20. Bxe7 {[%clk 0:01:35]}  Rxe7 {[%clk 0:00:02]} 21. Rxe7 {[%clk 0:01:34]}  Qb7 {[%clk 0:00:01]} 22. Ng5 {[%clk 0:01:33]} 1-0


[Site "https://www.chess.com"]